{"text_format":"1","workbook":"xlsx","n_sheets":2,"sheets":["Pasiūlymas","Subtiekėjai ir priedai"],"not_rendered":{"charts":0,"images":0,"macros":1,"external_links":0,"defined_names":0,"comments":0,"pivot_tables":0},"unopened":[],"bounds":{"document_bytes":16777216,"sheet_cells":100000,"rows_first":2000,"rows_last":500,"rows_between":2000,"halvings":0,"cell_chars":16384,"cell_head_chars":4096},"cells_cut":0,"cells_raw":0,"read":"whole","date_system":"1900"}

{"sheet":"Pasiūlymas","index":0,"n_rows":231,"n_cols":7,"rows_kept":231,"cut":false,"hidden":false,"merged":[[27,0,27,5],[28,0,28,5],[24,0,24,5],[25,0,25,5],[26,0,26,5],[18,0,18,1],[18,2,18,5],[23,0,23,5],[19,0,19,1],[20,0,20,1],[19,2,19,5],[20,2,20,5],[22,0,22,5],[29,0,29,2],[29,3,29,5],[11,0,11,1],[11,2,11,5],[12,0,12,1],[12,2,12,5],[13,0,13,1],[13,2,13,5],[14,0,14,1],[14,2,14,5],[15,0,15,1],[15,2,15,5],[16,0,16,1],[16,2,16,5],[17,0,17,1],[17,2,17,5]]}
[]
["PIKIMO SĄLYGŲ PRIEDAS \"PASIŪLYMO FORMA\""]
[]
["LAPARASKOPINĖS ĮRANGOS ATSARGINĖS DALYS IR PRIEDAI"]
[]
["Kam:","LSMU Kauno ligoninė"]
[]
["Data:","2022 01 24"]
["Nr.:","OLI 2201/24"]
["Vieta:","Vilnius"]
[]
["Tiekėjo pavadinimas / Ūkio subjektų grupės nariai:",null,"Olympus Sverige Aktiebolag  (Lietuvoje veikianti per filialą „Olympus Sverige Aktiebolag Lietuvos filialas“)"]
["Tiekėjo kodas (-ai):",null,"9000273809"]
["Tiekėjo adresas (-ai):",null,"L.Zamenhofo g. 3, LT-06332 Vilnius"]
["Tiekėjo PVM mokėtojo kodas(-ai):",null,"LT100009813015"]
["Tiekėjo / Ūkio subjektų grupės atsakingo partnerio sąskaitos numeris, banko pavadinimas ir banko kodas (-ai):",null,"LT077044060008063000, AB SEB bankas, banko kodas 70440"]
["Asmens atsakingo už pasiūlymą vardas, pavardė:",null,"Vadybininkas Tomas Butauskas"]
["Asmens atsakingo už pasiūlymą telefono numeris, el. pašto adresas:",null,"8 5 2330021, tomas.butauskase@olympus.lt"]
["Tiekėjo / Ūkio subjektų grupės, laimėjimo atveju, pasirašančio sutartį asmens vardas, pavardė, pareigos:",null," Įgaliotas atstovas Andrius Simonaitis "]
["Tiekėjo / Ūkio subjektų grupės, laimėjimo atveju, už sutarties vykdymą atsakingo asmens vardas, pavardė, telefono numeris, elektroninio pašto adresas:",null,"Vadybininkas Tomas Butauskas, tel.8 5 2330021, tomas.butauskas@olympus.lt"]
["(1) Tiekėjo / Ūkio subjektų grupės narių, (2) ūkio subjektų, kurių pajėgumais remiamasi, ir (3) jei pašalinimo pagrindai taikomi visiems subtiekėjams - subtiekėjų, kolegialaus priežiūros organo (Stebėtojų tarybos) ir (ar) kolegialaus valdymo organo (Valdybos) narių sąrašas (jei sudaryta) ir (ar) asmuo, kuriam suteikti VPĮ 46 str. 2 d. 2 p. numatyti įgaliojimai",null,null,null,null,null,{"$f":"IF((SUMPRODUCT(--(C21=\"\"))>0), \"Privaloma užpildyti, kai taikomi pašalinimo pagrindai\", \"\")","v":"Privaloma užpildyti, kai taikomi pašalinimo pagrindai"}]
[]
["Tiekėjo patvirtinimai:"]
["1. Šiuo pasiūlymu pažymime, kad sutinkame su visomi pirkimo sąlygomis, nustatytomis:"]
["1.1. viešojo pirkimo dokumentuose"]
["1.2. kituose pirkimo dokumentuose (jų paaiškinimuose, papildymuose)."]
["2. Patvirtiname, kad informacija ir duomenys, pateikti pasiūlyme, yra teisingi ir apima viską, ko reikia tinkamam sutarties įvykdymui"]
["3. Patvirtiname, kad jei pasiūlyme nenurodyti kolegialaus priežiūros/valdymo organų nariai, šie organai juridiniuose asmenyse nėra sudaryti (taikoma, kai pirkimo dokumentuose nustatyti pašalinimo pagrindai)."]
["4. Pasiūlymas galioja iki termino, nustatyto pirkimo dokumentuose."]
["5. Tais atvejais, kai pagal galiojančius teisės aktus tiekėjui nereikia mokėti PVM, jis nurodo priežastis, dėl kurių PVM nemoka:"]
["6. Tiekėjas kainas pateikia, nurodydamas ne daugiau skaičių po kablelio, nei leidžiama pirkimo dokumentuose."]
["1. DALIS","R.WOLF LAPAROSKOPINĖS ĮRANGOS DALIŲ SĄRAŠAS"]
[]
["Tiekėjo pasiūlymas:"]
["Nr.","Pavadinimas","Kiekis","Mato vienetas","Kaina be PVM, Eur","Suma be PVM, Eur"]
["1.","R.Wolf laparoskopinės įrangos dalių sąrašas"]
["1.1.","Morceliatoriaus peilis",2,"vnt.",null,{"$f":"IF(ISBLANK(E37),\"\", PRODUCT(C37,E37))","v":""}]
["1.2.","Morceliatoriaus audinių tarpinė",3,"vnt.",null,""]
["1.3.","Morceliatoriaus instrumento tarpinė",3,"vnt.",null,""]
["1.4.","Tepalas skirtas morceliatoriaus tepalo flakonui",1,"vnt.",null,""]
["1.5.","Antgalis flakonui",1,"vnt.",null,""]
["1.6.","Morceliatoriaus mikromotoras",1,"vnt.",null,""]
["1.7.","Laidas mikromotorui",1,"vnt.",null,""]
["1.8.","Morceliatoriaus pavara",1,"vnt.",null,""]
["1.9.","Morceliatoriaus pedalas",1,"vnt.",null,""]
["1.10.","Kameros galvutės optinis lęšis",1,"vnt.",null,""]
["1.11.","Laparoskopinių žnyplių darbinė dalis",2,"vnt.",null,""]
["1.12.","Laparoskopinių žnyplių darbinė dalis",1,"vnt.",null,""]
["1.13.","Laparoskopinių žirklių darbinė dalis",2,"vnt.",null,""]
["1.14.","Laparoskopinių žnyplių vamzdelis",2,"vnt.",null,""]
["1.15.","Laparoskopinių žnyplių vamzdelis",1,"vnt.",null,""]
["1.16.","Laparoskopinių žnyplių rankena",2,"vnt.",null,""]
["1.17.","Laparoskopinių žnyplių rankena",2,"vnt.",null,""]
["1.18.","Laparoskopinių žnyplių rankena",2,"vnt.",null,""]
["1.19.","Bipolinių laparoskopinių žnyplių darbinė dalis",2,"vnt.",null,""]
["1.20.","Bipolinių laparoskopinių žnyplių vamzdelis",2,"vnt.",null,""]
["1.21.","Bipolinių laparoskopinių žnyplių rankena",2,"vnt.",null,""]
["1.22.","Kabliukas",2,"vnt.",null,""]
["1.23.","Trokaro vamzdelis",2,"vnt.",null,""]
["1.24.","Trokaro vamzdelis",2,"vnt.",null,""]
["1.25.","Trokaro viršūnėlė",2,"vnt.",null,""]
["1.26.","Trokaro viršūnėlė",2,"vnt.",null,""]
["1.27.","Trokaro vožtuvas",2,"vnt.",null,""]
["1.28.","Trokaro vožtuvas",2,"vnt.",null,""]
["1.29.","Trokaro gaubtelis",3,"vnt.",null,""]
["1.30.","Trokaro gaubtelis",3,"vnt.",null,""]
["1.31.","Trokaro sandarinimo tarpinė",2,"vnt.",null,""]
["1.32.","Trokaro sandarinimo tarpinė",2,"vnt.",null,""]
["1.33.","Sandarinimo žiedeliai",1,"kompl.",null,{"$f":"IF(ISBLANK(E69),\"\", PRODUCT(C69,E69))","v":""}]
["1.34.","Siurbimo-plovimo rankena",1,"vnt.",null,""]
["1.35.","Dangtelis siurbimo-plovimo rankenai",2,"vnt.",null,""]
["1.36.","Tarpinė",3,"vnt.",null,""]
["1.37.","Plovimo žarnelės ir rankenos jungiamoji žarnelė",2,"vnt.",null,""]
["1.38.","Plovimo žarnelės",2,"kompl.",null,""]
["1.39.","Siurbimo žarnelė",2,"vnt.",null,""]
["1.40.","Siurbimo-plovimo vamzdelis",2,"vnt.",null,""]
["1.41.","Tarpinė",2,"vnt.",null,""]
["1.42.","Luer lock tipo jungtis",2,"vnt.",null,""]
["1.43.","Luer lock tipo jungtis",2,"vnt.",null,""]
["1.44.","Siurbimo-plovimo vamzdelis",2,"vnt.",null,""]
["1.45.","Adata",3,"vnt.",null,""]
["1.46.","Filtras",2,"vnt.",null,""]
["1.47.","Paciento elektrodo kabelis",4,"vnt.",null,""]
["1.48.","Paciento elektrodas",5,"vnt.",null,""]
["1.49.","Monopolinis laidas",4,"vnt.",null,""]
["1.50.","Bipolinis laidas",6,"vnt.",null,""]
["1.51.","Žarnelių rinkinys hysteroskopijai",2,"kompl.",null,""]
["1.52.","Indas skysčio nutekėjimui",2,"vnt.",null,""]
["1.53.","Rezektoskopo sandarinimo tarpinė",10,"vnt.",null,""]
["1.54.","Rezektoskopo sandarinimo tarpinė",10,"vnt.",null,""]
["1.55.","Optika",3,"vnt.",null,""]
["1.56.","Optika",2,"vnt.",null,""]
["1.57.","Optikos sterilizavimo krepšelis",1,"vnt.",null,""]
["1.58.","Optikos sterilizavimo dėklo tarpinės",2,"kompl.",null,""]
["1.59.","Elektrodas kilputė",10,"vnt.",null,""]
["1.60.","Elektrodas volelis",2,"vnt.",null,""]
["1.61.","Elektrodas kabliukas",2,"vnt.",null,""]
["1.62.","Šviesolaidis",4,"vnt.",null,""]
["1.63.","Išorinis rezektoskopo tubusas",2,"vnt.",null,""]
["1.64.","Vidinis rezektoskopo tubusas",1,"vnt.",null,""]
["1.65.","Darbinis elementas",1,"vnt.",null,{"$f":"IF(ISBLANK(E101),\"\", PRODUCT(C101,E101))","v":""}]
["1.66.","Hysteroskopinės pompos varikliukas",1,"vnt.",null,""]
["1.67.","Bipolinis pincetas",2,"vnt.",null,""]
["1.68.","Bipolinis kabelis",3,"vnt.",null,""]
["1.69.","Šviesolaidis",2,"vnt.",null,""]
["1.70.","Griebiančios žnyplės",1,"vnt.",null,""]
[null,null,null,null,"Suma be PVM",{"$f":"IF((SUMPRODUCT(--(F37:F106=\"\"))>0), \"\", SUM(F37:F106))","v":""},{"$f":"IF((SUMPRODUCT(--(F37:F106=\"\"))>0), \"Neužpildytos visų objektų kainos\", \"\")","v":"Neužpildytos visų objektų kainos"}]
[null,null,null,null,"PVM suma"]
[null,null,null,null,"Suma su PVM",{"$f":"IF(ISBLANK(F108), \"\", SUM(F107:F108))","v":""},"Dalies biudžetas su PVM: 52030 Eur"]
[]
[]
[]
["2. DALIS","KARL STORZ LAPAROSKOPINĖS ĮRANGOS DALIŲ SĄRAŠAS"]
[]
["Tiekėjo pasiūlymas:"]
["Nr.","Pavadinimas","Kiekis","Mato vienetas","Kaina be PVM, Eur","Suma be PVM, Eur"]
["2.","Karl Storz laparoskopinės įrangos dalių sąrašas"]
["2.1.","Išorinė mova",4,"vnt.",null,{"$f":"IF(ISBLANK(E118),\"\", PRODUCT(C118,E118))","v":""}]
["2.2.","Žnyplių insertas",2,"vnt.",null,""]
["2.3.","Žirklių įdėklas",2,"vnt.",null,""]
["2.4.","Adata",3,"vnt.",null,""]
["2.5.","Adata",3,"vnt.",null,""]
["2.6.","Fibrooptinis šviesolaidis",3,"vnt.",null,""]
["2.7.","Fibrooptinis šviesolaidis",3,"vnt.",null,""]
["2.8.","Fibrooptinis šviesolaidis",3,"vnt.",null,""]
["2.9.","Fibrooptinis šviesolaidis",2,"vnt.",null,""]
["2.10.","Fibrooptinis šviesolaidis",2,"vnt.",null,""]
["2.11.","Monopolinis aukšto dažnio laidas",3,"vnt.",null,""]
["2.12.","Monopolinis aukšto dažnio laidas",2,"vnt.",null,""]
["2.13.","Išorinė mova",3,"vnt.",null,""]
["2.14.","Rezektoskopo elektrodas",2,"vnt.",null,""]
["2.15.","Tarpinė",2,"vnt.",null,""]
["2.16.","Žirklės",2,"vnt.",null,""]
["2.17.","Disekcinės ir griebiančios žnyplės",2,"vnt.",null,""]
["2.18.","Disekcinės ir griebiančios žnyplės",2,"vnt.",null,""]
["2.19.","Adatkotis",1,"vnt.",null,""]
["2.20.","Adatkotis",1,"vnt.",null,""]
["2.21.","Fibrooptinis šviesolaidis",2,"vnt.",null,""]
["2.22.","Griebiančios žnyplės",1,"vnt.",null,""]
["2.23.","Optika",2,"vnt.",null,""]
["2.24.","Optika",8,"vnt.",null,""]
["2.25.","Optika",4,"vnt.",null,""]
["2.26.","Rezektoskopo darbinis elementas",1,"vnt.",null,""]
["2.27.","Izoliuota išorinė įmova",1,"vnt.",null,""]
["2.28.","Rankena",1,"vnt.",null,""]
["2.29.","Rankena",1,"vnt.",null,""]
["2.30.","Žnyplių įdėklas",1,"vnt.",null,""]
["2.31.","Žnyplių įdėklas",1,"vnt.",null,""]
["2.32.","Optika",1,"vnt.",null,""]
["2.33.","Optika",1,"vnt.",null,{"$f":"IF(ISBLANK(E150),\"\", PRODUCT(C150,E150))","v":""}]
["2.34.","Multifunkcinis vožtuvas",1,"vnt.",null,""]
["2.35.","Žnyplių įdėklas",1,"vnt.",null,""]
["2.36.","Fibrooptinis šviesolaidis",1,"vnt.",null,""]
["2.37.","Izoliuota išorinė įmova",1,"vnt.",null,""]
["2.38.","Tarpinės",1,"vnt.",null,""]
["2.39.","Rankena",1,"vnt.",null,""]
["2.40.","Rankena",1,"vnt.",null,""]
["2.41.","Žnyplių įdėklas",1,"vnt.",null,""]
["2.42.","Slėginė galva",1,"vnt.",null,""]
["2.43.","Šviesolaidis",1,"vnt.",null,""]
["2.44.","Troakaras",2,"vnt.",null,""]
["2.45.","Troakaras",4,"vnt.",null,""]
["2.46.","Troakaras",1,"vnt.",null,""]
["2.47.","Troakaras",4,"vnt.",null,""]
["2.48.","Kepurėlės",20,"kompl.",null,""]
["2.49.","Kepurėlės",20,"kompl.",null,""]
["2.50.","Reduktorius",2,"vnt.",null,""]
["2.51.","Reduktorius",1,"vnt.",null,""]
["2.52.","Žnyplės",2,"vnt.",null,""]
["2.53.","Griebiančios žnyplės",2,"vnt.",null,""]
["2.54.","Griebiančios disekcinės žnyplės",1,"vnt.",null,""]
["2.55.","Griebiančios disekcinės žnyplės",1,"vnt.",null,""]
["2.56.","Žirklės",3,"vnt.",null,""]
["2.57.","Žirklių įdėklas",4,"vnt.",null,""]
["2.58.","Žirklių įdėklas",1,"vnt.",null,""]
["2.59.","Bipolinės griebiančios žnyplės",2,"vnt.",null,""]
["2.60.","Disekcinės žnyplės",2,"vnt.",null,""]
["2.61.","Disekcinės žnyplės",2,"vnt.",null,""]
["2.62.","Žirklės",2,"vnt.",null,""]
["2.63.","Žnyplių rankena",2,"vnt.",null,""]
["2.64.","Žnyplių rankena",2,"vnt.",null,""]
["2.65.","Mova",10,"vnt.",null,{"$f":"IF(ISBLANK(E182),\"\", PRODUCT(C182,E182))","v":""}]
["2.66.","Žnyplių įdėklas",1,"vnt.",null,""]
["2.67.","Žnyplių įdėklas",1,"vnt.",null,""]
["2.68.","Žnyplių įdėklas",1,"vnt.",null,""]
["2.69.","Griebiančių žnyplių įdėklas",2,"vnt.",null,""]
["2.70.","Pilvinių žnyplių įdėklas",1,"vnt.",null,""]
["2.71.","Rankena",2,"vnt.",null,""]
["2.72.","Rankena",2,"vnt.",null,""]
["2.73.","Kaniulė",2,"vnt.",null,""]
["2.74.","Elektrodas",2,"vnt.",null,""]
["2.75.","Elektrodas",2,"vnt.",null,""]
["2.76.","Elektrodas",4,"vnt.",null,""]
["2.77.","Instrumentai fascijai",3,"vnt.",null,""]
["2.78.","Laidas",5,"vnt.",null,""]
["2.79.","Laidas",4,"vnt.",null,""]
["2.80.","Adata punkcijai",3,"vnt.",null,""]
["2.81.","Skėtiklis",2,"vnt.",null,""]
["2.82.","Retraktorius",2,"vnt.",null,""]
["2.83.","Biopsionės žnyplės",2,"vnt.",null,""]
["2.84.","Kilpos gimdos rezekcijai",8,"vnt.",null,""]
[null,null,null,null,"Suma be PVM",{"$f":"IF((SUMPRODUCT(--(F118:F201=\"\"))>0), \"\", SUM(F118:F201))","v":""},{"$f":"IF((SUMPRODUCT(--(F118:F201=\"\"))>0), \"Neužpildytos visų objektų kainos\", \"\")","v":"Neužpildytos visų objektų kainos"}]
[null,null,null,null,"PVM suma"]
[null,null,null,null,"Suma su PVM",{"$f":"IF(ISBLANK(F203), \"\", SUM(F202:F203))","v":""},"Dalies biudžetas su PVM: 95590 Eur"]
[]
[]
[]
["3. DALIS","OLYMPUS LAPAROSKOPINĖS ĮRANGOS DALIŲ SĄRAŠAS"]
[]
["Tiekėjo pasiūlymas:"]
["Nr.","Pavadinimas","Kiekis","Mato vienetas","Kaina be PVM, Eur","Suma be PVM, Eur"]
["3.","Olympus laparoskopinės įrangos dalių sąrašas"]
["3.1.","Optika",3,"vnt.",1590.56,{"$f":"IF(ISBLANK(E213),\"\", PRODUCT(C213,E213))","v":4771.68}]
["3.2.","Adata",3,"vnt.",71.760000000000005,215.28000000000003]
["3.3.","Griebiančios žnyplės",2,"vnt.",572.66,1145.32]
["3.4.","Griebiančios žnyplės",2,"vnt.",505.68,{"$f":"IF(ISBLANK(E216),\"\", PRODUCT(C216,E216))","v":1011.36}]
["3.5.","Griebiančios žnyplės",2,"vnt.",493.14,{"$f":"IF(ISBLANK(E217),\"\", PRODUCT(C217,E217))","v":986.28}]
["3.6.","Disekcinės žnyplės",2,"vnt.",498.25,{"$f":"IF(ISBLANK(E218),\"\", PRODUCT(C218,E218))","v":996.5}]
["3.7.","Žirklės",2,"vnt.",498.25,{"$f":"IF(ISBLANK(E219),\"\", PRODUCT(C219,E219))","v":996.5}]
["3.8.","Žirklių darbinė dalis",3,"vnt.",232.04,696.12]
["3.9.","Griebiančios žnyplės",2,"vnt.",873.3,1746.6]
["3.10.","Šviesolaidis",5,"vnt.",364.43,1822.15]
["3.11.","Aukšto dažnio elektrodas",4,"vnt.",137.56,550.24]
["3.12.","Aukšto dažnio laidas",3,"vnt.",79.39,238.17000000000002]
["3.13.","Aukšto dažnio laidas",3,"vnt.",38.369999999999997,115.10999999999999]
["3.14.","Punkcinės adatos",3,"kompl.",109.11,327.33]
["3.15.","Adatkotis",2,"vnt.",795.72,1591.44]
["3.16.","Ultragarsinės – bipolinės žnyplės",2,"vnt.",394.46,788.92]
[null,null,null,null,"Suma be PVM",{"$f":"IF((SUMPRODUCT(--(F213:F228=\"\"))>0), \"\", SUM(F213:F228))","v":17998.999999999996},{"$f":"IF((SUMPRODUCT(--(F213:F228=\"\"))>0), \"Neužpildytos visų objektų kainos\", \"\")","v":""}]
[null,null,null,null,"PVM suma",3779.79]
[null,null,null,null,"Suma su PVM",{"$f":"IF(ISBLANK(F230), \"\", SUM(F229:F230))","v":21778.789999999997},"Dalies biudžetas su PVM: 21780 Eur"]

{"sheet":"Subtiekėjai ir priedai","index":1,"n_rows":100,"n_cols":11,"rows_kept":100,"cut":false,"hidden":false,"merged":[[23,0,23,1],[22,0,22,1],[21,0,21,1],[20,0,20,1],[19,0,19,1],[28,0,28,1],[27,0,27,1],[26,0,26,1],[25,0,25,1],[24,0,24,1],[23,2,23,4],[22,2,22,4],[21,2,21,4],[20,2,20,4],[19,2,19,4],[28,2,28,4],[27,2,27,4],[26,2,26,4],[25,2,25,4],[24,2,24,4],[23,5,23,7],[22,5,22,7],[21,5,21,7],[20,5,20,7],[19,5,19,7],[28,5,28,7],[27,5,27,7],[26,5,26,7],[25,5,25,7],[24,5,24,7],[23,8,23,9],[22,8,22,9],[21,8,21,9],[20,8,20,9],[19,8,19,9],[28,8,28,9],[27,8,27,9],[26,8,26,9],[25,8,25,9],[24,8,24,9],[16,0,16,10],[18,8,18,9],[18,5,18,7],[18,2,18,4],[18,0,18,1],[13,0,13,1],[12,0,12,1],[11,0,11,1],[10,0,10,1],[13,8,13,9],[12,8,12,9],[11,8,11,9],[10,8,10,9],[4,0,4,1],[5,5,5,7],[5,0,5,1],[9,0,9,1],[13,2,13,4],[12,2,12,4],[11,2,11,4],[10,2,10,4],[9,2,9,4],[13,5,13,7],[12,5,12,7],[11,5,11,7],[10,5,10,7],[9,5,9,7],[1,0,2,10],[30,0,30,9],[14,5,14,7],[8,5,8,7],[7,5,7,7],[6,5,6,7],[14,8,14,9],[8,8,8,9],[7,8,7,9],[6,8,6,9],[14,0,14,1],[8,0,8,1],[7,0,7,1],[6,0,6,1],[14,2,14,4],[8,2,8,4],[7,2,7,4],[9,8,9,9],[6,2,6,4],[5,2,5,4],[5,8,5,9],[4,8,4,9],[4,5,4,7],[4,2,4,4],[32,0,32,9],[34,7,34,9],[34,1,34,6],[45,7,45,9],[42,7,42,9],[37,7,37,9],[36,7,36,9],[35,7,35,9],[44,7,44,9],[43,7,43,9],[41,7,41,9],[40,7,40,9],[39,7,39,9],[38,7,38,9],[45,1,45,6],[44,1,44,6],[47,0,47,9],[52,4,52,9],[50,4,50,9],[52,0,52,3],[50,0,50,3],[38,1,38,6],[37,1,37,6],[36,1,36,6],[35,1,35,6],[43,1,43,6],[42,1,42,6],[41,1,41,6],[40,1,40,6],[39,1,39,6]]}
[]
["Ūkio subjektai (įskaitant kvazisubtiekėjus - fiziniai asmenys, kuriuos ketinama įdarbinti pirkimo laimėjimo atveju), kurių pajėgumais tiekėjas remiasi, kad atitiktų keliamus kvalifikacijos reikalavimus:"]
[]
[]
["Pavadinimas*",null,"Kodas, adresas",null,null,"Perduodami įsipareigojimai",null,null,"Perduodamų įsipareigojimų dalis nuo visos pirkimo sutarties (Eur arba %)",null,"Kval. Reikalavimo Nr."]
[]
[]
[]
[]
[]
[]
[]
[]
[]
[]
[]
["Subtiekėjams / subteikėjams / subrangovams numatomos perduoti veiklos (privaloma nurodyti) ir šių ūkio subjektų pavadinimai (jei žinomi):"]
[]
["Pavadinimas",null,"Kodas, adresas",null,null,"Perduodama veikla*",null,null,"Perduodamos veiklos dalis nuo visos pirkimo sutarties (Eur arba %)"]
[]
[]
[]
[]
[]
[]
[]
[]
[]
[]
[]
[]
[]
["Kartu su pasiūlymu pateikiami šie dokumentai:"]
[]
["Nr.","Dokumento  pavadinimas",null,null,null,null,null,"Dokumentas yra konfidencialus? Taip/Ne"]
["1","Jungtinės veiklos kopija (jei taikoma)",null,null,null,null,null,"netaikoma"]
["2","Europos bendrasis viešųjų pirkimų dokumentas",null,null,null,null,null,"ne"]
["3","Subtiekimo sutartis, ketinimų protokolas, preliminarios sutartys ar kiti dokumentai, patvirtinantys, kad laimėjus pirkimą tiekėjui bus prieinami kitų ūkio subjektų ištekliai (jei pasitelkiami kvalifikacijos atitikimui)",null,null,null,null,null,"netaikoma"]
[4,"Įgaliojimas pasirašyti pasiūlymą",null,null,null,null,null,"taip"]
[5,"Katalogas",null,null,null,null,null,"ne"]
[]
[]
[]
[]
[]
[]
[]
["Pasiūlyme nurodyta Prekės kaina, išskyrus jos sudedamąsias dalis, subtiekėjai, taip pat kita informacija, kuri teisės aktų nustatyta tvarka turi būti skelbiama arba kitokiu būdu viešai prieinama visuomenei, nėra laikoma konfidencialia informacija. Konfidencialią informaciją sudaro, visų pirma, komercinė (gamybinė) paslaptis ir konfidencialieji pasiūlymų aspektai. Informacija, kurią viešai skelbti įpareigoja Lietuvos Respublikos įstatymai, negali būti tiekėjo nurodoma kaip konfidenciali, todėl, tiekėjui nurodžius tokią informaciją kaip konfidencialią, perkančioji organizacija turi teisę ją skelbti. Jei tiekėjas nenurodo konfidencialios informacijos, laikoma, kad konfidencialios informacijos tiekėjo pasiūlyme nėra. Vadovaujantis Informacijos viešinimo Centrinėje viešųjų pirkimų informacinėje sistemoje tvarkos aprašu, patvirtintu Viešųjų pirkimų tarnybos direktoriaus 2017 m. birželio 19 d. įsakymu Nr. 1S-91 „Dėl Informacijos viešinimo Centrinėje viešųjų pirkimų informacinėje sistemoje tvarkos aprašo patvirtinimo“, perkančioji organizacija laimėjusio dalyvio pasiūlymą, išskyrus informaciją, kurią tiekėjas nurodė kaip konfidencialią, paskelbs CVP IS."]
[]
[]
["Tiekėjo arba jo įgalioto asmens pareigų pavadinimas:",null,null,null,"Įgaliotas atstovas"]
[]
["Pasirašančio asmens vardas ir pavardė:",null,null,null,"Andrius Simonaitis"]
[]
[]
[]
[]
[]
[]
[]
[]
[]
[]
[]
[]
[]
[]
[]
[]
[]
[]
[]
[]
[]
[]
[]
[]
[]
[]
[]
[]
[]
[]
[]
[]
[]
[]
[]
[]
[]
[]
[]
[]
[]
[]
[]
[]
[]
[]
["5156 2021-12-16 16:47:02"]